bitfinex/quotes_BTCUSD_20251209
["timestamp","ask_amount","ask_price","bid_price","bid_amount"]
[1765262801440,0.00604965,89984.0,89983.0,0.45498261]
[1765262802400,0.00604965,89984.0,89983.0,0.67724681]
[1765262802603,0.00604965,89984.0,89983.0,2.08381281]
[1765262802733,0.00304965,89984.0,89983.0,2.08381281]
[1765262803134,0.00104965,89984.0,89983.0,2.08381281]
[1765262803431,0.00304965,89984.0,89983.0,2.08381281]
[1765262803632,0.00304965,89984.0,89983.0,2.08481281]
[1765262803995,0.0004,90020.0,90019.0,0.323]
[1765262804248,0.00051597,90020.0,90019.0,2.35092]
[1765262804459,0.00051597,90020.0,90019.0,2.41211278]
[1765262804671,0.00051597,90020.0,90019.0,2.41655922]
[1765262804901,0.00051597,90020.0,90019.0,2.37986644]
[1765262805385,0.00051597,90020.0,90019.0,2.59415994]
[1765262805628,0.00051597,90020.0,90019.0,2.53457553]
[1765262806642,0.00051597,90020.0,90019.0,2.53957553]
[1765262807047,0.00051597,90020.0,90019.0,2.53757553]
[1765262807338,0.00051597,90020.0,90019.0,2.53957553]
[1765262809414,0.00159498,90020.0,90019.0,2.53957553]
[1765262810637,0.00159498,90020.0,90019.0,2.02794853]
[1765262811027,0.00159498,90020.0,90019.0,2.00795217]
[1765262816811,0.00159498,90020.0,90019.0,2.02994817]
[1765262818969,0.00159498,90020.0,90019.0,2.25212348]
[1765262820376,0.0004,90040.0,90019.0,2.25212348]
[1765262820377,0.0004,90040.0,90029.0,1.90907963]
[1765262820580,0.0004,90040.0,90029.0,1.54394163]
[1765262820791,0.0004,90040.0,90039.0,0.54512596]
[1765262820994,0.0004,90050.0,90047.0,0.01110531]
[1765262821229,0.0004,90050.0,90049.0,0.02823]
[1765262821390,0.0004,90050.0,90049.0,0.35123]
[1765262821595,0.0004,90050.0,90049.0,0.37573]
[1765262822000,0.00201287,90050.0,90049.0,0.37573]
[1765262822233,0.0004,90050.0,90049.0,0.37573]
[1765262822596,0.0004,90050.0,90049.0,0.05273]
[1765262822947,0.0044,90050.0,90049.0,0.05273]
[1765262823243,0.0064,90050.0,90049.0,0.05273]
[1765262823624,0.0044,90050.0,90049.0,0.05273]
[1765262823857,0.0044,90050.0,90049.0,1.888951]
[1765262824057,0.0044,90050.0,90049.0,1.428044]
[1765262824896,0.0004,90050.0,90049.0,1.428044]
[1765262825112,0.0014,90050.0,90049.0,1.428044]
[1765262825517,0.0004,90050.0,90049.0,1.428044]
[1765262825715,0.0004,90050.0,90049.0,1.429044]
[1765262825914,0.0004,90050.0,90049.0,0.37773]
[1765262826122,0.0004,90050.0,90049.0,0.529558]
[1765262826523,0.00129871,90050.0,90049.0,0.530558]
[1765262826724,0.00129871,90050.0,90049.0,0.529558]
[1765262826948,0.00229871,90050.0,90049.0,0.556431]
[1765262827126,0.00229871,90050.0,90049.0,0.546038]
[1765262828189,0.00129871,90050.0,90049.0,0.545038]
[1765262828556,0.00429871,90050.0,90049.0,0.545038]
[1765262829064,0.00429871,90050.0,90049.0,0.7671393]
[1765262831446,0.00329871,90050.0,90049.0,0.7671393]
[1765262831648,0.00129871,90050.0,90049.0,0.35123]
[1765262832469,0.00129871,90050.0,90049.0,0.37404]
[1765262832672,0.00429871,90050.0,90049.0,0.37404]
[1765262833293,0.00429871,90050.0,90049.0,0.43362441]
[1765262833491,0.00429871,90050.0,90049.0,0.41081441]
[1765262834055,0.00429871,90050.0,90049.0,0.35123]
[1765262835099,0.00429871,90050.0,90049.0,0.534241]
[1765262835314,0.00429871,90050.0,90049.0,0.486354]
[1765262835493,0.00429871,90050.0,90049.0,0.37551]
[1765262836845,0.00429871,90050.0,90049.0,0.35123]
[1765262837133,0.00429871,90050.0,90049.0,0.323]
[1765262837526,0.04112158,90050.0,90048.0,0.03334198]
[1765262837725,0.02742105,90049.0,90048.0,0.03334198]
[1765262838047,0.04768982,90049.0,90048.0,0.03334198]
[1765262838749,0.02828982,90049.0,90048.0,0.03334198]
[1765262839302,0.03228982,90049.0,90048.0,0.03334198]
[1765262839507,0.03428982,90049.0,90048.0,0.03334198]
[1765262840624,0.00848164,90049.0,90048.0,0.03334198]
[1765262841475,0.00848164,90049.0,90048.0,0.39663198]
[1765262842489,0.00848164,90049.0,90048.0,0.07363198]
[1765262845452,0.00686877,90049.0,90048.0,0.07363198]
[1765262845652,0.00686877,90049.0,90048.0,0.39663198]
[1765262847193,0.00286877,90049.0,90048.0,0.39663198]
[1765262847359,0.00186877,90049.0,90048.0,0.39663198]
[1765262847892,0.00286877,90049.0,90048.0,0.39663198]
[1765262848328,0.00286877,90049.0,90048.0,0.45643114]
[1765262849266,0.00286877,90049.0,90048.0,0.39663198]
[1765262851605,0.00286877,90049.0,90048.0,1.07348998]
[1765262854585,0.00186877,90049.0,90048.0,1.07348998]
[1765262854771,0.00086877,90049.0,90048.0,1.07348998]
[1765262854988,0.00086877,90049.0,90048.0,1.07648998]
[1765262855193,0.00086877,90049.0,90048.0,1.15606333]
[1765262855389,0.00086877,90049.0,90048.0,1.16605839]
[1765262857217,0.0004,90070.0,90068.0,0.323]
[1765262857420,0.0004,90070.0,90069.0,0.57222198]
[1765262857837,0.0004,90070.0,90069.0,0.39201]
[1765262858341,0.0014,90070.0,90069.0,0.39201]
[1765262858737,0.0034,90070.0,90069.0,0.39201]
[1765262859550,0.0024,90070.0,90069.0,0.39201]
[1765262859750,0.0044,90070.0,90069.0,0.39201]
[1765262861398,0.0044,90070.0,90069.0,0.43183584]
[1765262862162,0.0044,90070.0,90069.0,0.39201]
[1765262862530,0.0044,90070.0,90069.0,0.43183371]
[1765262862918,0.0024,90070.0,90069.0,0.41427371]
[1765262863321,0.00102884,90070.0,90069.0,0.41427371]
[1765262865432,0.00102884,90070.0,90069.0,0.37445]
[1765262866279,0.00102884,90070.0,90069.0,0.39201]
[1765262870163,0.0229412,90070.0,90069.0,0.39201]
[1765262870337,0.00102884,90070.0,90069.0,0.39201]
[1765262871120,0.00202884,90070.0,90069.0,0.39201]
[1765262872262,0.00302884,90070.0,90069.0,0.39201]
[1765262872464,0.00302884,90070.0,90069.0,0.45178692]
[1765262872673,0.00102884,90070.0,90069.0,0.45178692]
[1765262872877,0.00102884,90070.0,90069.0,0.39201]
[1765262873084,0.00102884,90070.0,90069.0,0.45178692]
[1765262873395,0.00102884,90070.0,90069.0,0.39201]
[1765262874357,0.00102884,90070.0,90069.0,0.45178692]
[1765262875376,0.00102884,90070.0,90069.0,0.39201]
[1765262880497,0.00102884,90070.0,90069.0,2.39201]
[1765262881153,0.0004,90080.0,90079.0,2.54502733]
[1765262881383,0.00078674,90080.0,90079.0,2.57345733]
[1765262881496,0.00078674,90080.0,90079.0,2.63415939]
[1765262882199,0.01752,90091.0,90089.0,0.54500268]
[1765262882400,0.00051597,90090.0,90089.0,0.57343268]
[1765262882670,0.00051597,90090.0,90089.0,0.59745268]
[1765262882799,0.00051597,90090.0,90089.0,0.61497268]
[1765262883665,0.00151597,90090.0,90089.0,0.61497268]
[1765262884258,0.00151597,90090.0,90089.0,2.56616468]
[1765262884464,0.00151597,90090.0,90089.0,2.49860468]
[1765262884825,0.00151597,90090.0,90089.0,2.46260468]
[1765262885062,0.00251597,90090.0,90089.0,2.46260468]
[1765262885265,0.00251597,90090.0,90089.0,1.70928468]
[1765262885461,0.00251597,90090.0,90089.0,1.62964668]
[1765262886254,0.00251597,90090.0,90089.0,1.44280668]
[1765262888297,0.00251597,90090.0,90089.0,1.220804]
[1765262888455,0.00251597,90090.0,90089.0,0.928888]
[1765262888643,0.00311469,90090.0,90089.0,0.928888]
[1765262889883,0.00311469,90090.0,90089.0,0.907519]
[1765262890098,0.03224574,90090.0,90089.0,0.34052]
[1765262890291,0.03224574,90090.0,90087.0,0.07218974]
[1765262890292,0.02191236,90088.0,90087.0,0.11200496]
[1765262890474,0.02191236,90088.0,90087.0,0.07218974]
[1765262890475,0.02352523,90088.0,90087.0,0.07218974]
[1765262890708,0.06739587,90088.0,90087.0,0.42505893]
[1765262891081,0.06739587,90088.0,90087.0,0.39518974]
[1765262892443,0.07439587,90088.0,90087.0,0.39518974]
[1765262894383,0.04664523,90088.0,90087.0,0.323]
[1765262895645,0.04718409,90088.0,90087.0,0.323]
[1765262897237,0.03106409,90088.0,90087.0,0.323]
[1765262897621,0.00753886,90088.0,90087.0,0.323]
[1765262898269,0.00753886,90088.0,90087.0,0.36431]
[1765262899188,0.00353886,90088.0,90087.0,0.36431]
[1765262899481,0.00553886,90088.0,90087.0,0.42290442]
[1765262899979,0.00253886,90088.0,90087.0,0.42290442]
[1765262900403,0.00453886,90088.0,90087.0,0.42290442]
[1765262900609,0.00453886,90088.0,90087.0,2.09652305]
[1765262900610,0.00253886,90088.0,90087.0,2.09652305]
[1765262900814,0.00053886,90088.0,90087.0,2.03280005]
[1765262900976,0.00053886,90088.0,90087.0,1.99733205]
[1765262901175,0.00053886,90088.0,90087.0,1.99833205]
[1765262901379,0.00053886,90088.0,90087.0,1.74538705]
[1765262901708,0.00053886,90088.0,90087.0,1.74338705]
[1765262901905,0.00053886,90088.0,90087.0,1.74638705]
[1765262902105,0.00053886,90088.0,90087.0,1.66244536]
[1765262902313,0.00053886,90088.0,90087.0,0.50281036]
[1765262903248,0.00053886,90088.0,90087.0,0.53949242]
[1765262903710,0.00053886,90088.0,90087.0,0.53749242]
[1765262903883,0.00053886,90088.0,90087.0,0.53849242]
[1765262904081,0.00053886,90088.0,90087.0,0.53549242]
[1765262904611,0.00053886,90088.0,90087.0,0.53649242]
[1765262904784,0.00053886,90088.0,90087.0,0.53749242]
[1765262905328,0.00053886,90088.0,90087.0,0.61515955]
[1765262905513,0.00053886,90088.0,90087.0,0.53749242]
[1765262906249,0.00053886,90088.0,90087.0,0.61715955]
[1765262907706,0.00053886,90088.0,90087.0,0.61715415]
[1765262907983,0.00053886,90088.0,90087.0,0.50081036]
[1765262909408,0.00053886,90088.0,90087.0,0.58047209]
[1765262909541,0.00053886,90088.0,90087.0,0.57947209]
[1765262909971,0.00053886,90088.0,90087.0,0.58047209]
[1765262910383,0.00053886,90088.0,90087.0,0.49881036]
[1765262910588,0.00053886,90088.0,90087.0,0.57847209]
[1765262910791,0.00053886,90088.0,90087.0,0.57947209]
[1765262910953,0.00053886,90088.0,90087.0,0.49981036]
[1765262911138,0.00053886,90088.0,90087.0,0.57947209]
[1765262911772,0.00053886,90088.0,90087.0,0.49981036]
[1765262912871,0.00053886,90088.0,90087.0,0.64703378]
[1765262913267,0.00053886,90088.0,90087.0,0.56737205]
[1765262914091,0.0004,90100.0,90099.0,0.54497804]
[1765262914295,0.0004,90100.0,90099.0,0.60397767]
[1765262914548,0.0004,90100.0,90099.0,0.66538973]
[1765262914758,0.0004,90110.0,90107.0,0.01109791]
[1765262914891,0.0004,90110.0,90109.0,0.57307341]
[1765262915441,0.0004,90110.0,90109.0,0.6653651]
[1765262915583,0.0004,90110.0,90109.0,0.68727746]
[1765262916820,0.0034,90110.0,90109.0,0.68727746]
[1765262917013,0.0004,90110.0,90109.0,0.68727746]
[1765262917217,0.0004,90110.0,90109.0,1.51388446]
[1765262919467,0.0004,90110.0,90109.0,1.51488446]
[1765262919674,0.0004,90110.0,90109.0,1.51688446]
[1765262919908,0.00105836,90110.0,90109.0,1.51688446]
[1765262920317,0.0004,90120.0,90119.0,0.54492878]
[1765262920562,0.00051586,90120.0,90119.0,0.60392841]
[1765262920875,0.00051586,90120.0,90119.0,0.62865841]
[1765262921057,0.00051586,90120.0,90119.0,0.59777878]
[1765262921448,0.00051586,90120.0,90119.0,0.65734942]
[1765262921662,0.00051586,90120.0,90119.0,0.67926178]
[1765262922989,0.00051586,90120.0,90119.0,0.73443114]
[1765262923351,0.00051586,90120.0,90119.0,0.79398233]
[1765262923553,0.00051586,90120.0,90119.0,0.78030233]
[1765262923950,0.00051586,90120.0,90119.0,0.72075114]
[1765262924193,0.00051586,90120.0,90119.0,0.61969114]
[1765262924395,0.00051586,90120.0,90119.0,0.72787414]
[1765262925043,0.00051586,90120.0,90119.0,0.61969114]
[1765262925237,0.00051586,90120.0,90119.0,0.56684114]
[1765262925438,0.00051586,90120.0,90119.0,0.34491236]
[1765262925698,0.03903822,90120.0,90119.0,0.34491236]
[1765262926001,0.0393374,90120.0,90119.0,0.34491236]
[1765262926399,0.0413374,90120.0,90119.0,0.34491236]
[1765262926607,0.0423374,90120.0,90119.0,0.34491236]
[1765262926840,0.0403374,90120.0,90119.0,0.34491236]
[1765262927157,0.0413374,90120.0,90119.0,0.34491236]
[1765262927427,0.0423374,90120.0,90119.0,0.34491236]
[1765262927650,0.0257274,90120.0,90119.0,0.34491236]
[1765262928814,0.04395027,90120.0,90119.0,0.34491236]
[1765262929854,0.00542791,90120.0,90119.0,0.34491236]
[1765262930053,0.02203791,90120.0,90119.0,0.34491236]
[1765262930256,0.04395027,90120.0,90119.0,0.34491236]
[1765262931286,0.02203791,90120.0,90119.0,0.34491236]
[1765262931649,0.00542791,90120.0,90119.0,0.34491236]
[1765262934448,0.00542791,90120.0,90119.0,0.38461873]
[1765262935292,0.02203791,90120.0,90119.0,0.34491236]
[1765262935496,0.05143609,90120.0,90119.0,0.02191236]
[1765262936139,0.02191236,90112.0,90111.0,0.323]
[1765262936351,0.03943236,90112.0,90111.0,0.35632468]
[1765262936529,0.07544236,90112.0,90111.0,0.35632468]
[1765262937079,0.02191236,90112.0,90111.0,0.03332468]
[1765262937285,0.05604236,90112.0,90111.0,0.03332468]
[1765262938539,0.05904236,90112.0,90111.0,0.03332468]
[1765262938877,0.06104236,90112.0,90111.0,0.03332468]
[1765262940232,0.06104236,90112.0,90111.0,0.06315841]
[1765262940442,0.06104236,90112.0,90111.0,0.38615841]
[1765262940637,0.04443236,90112.0,90111.0,0.38615841]
[1765262942424,0.02691236,90112.0,90111.0,0.35632468]
[1765262942559,0.02252,90112.0,90111.0,0.35632468]
[1765262944479,0.02252,90112.0,90111.0,0.39637468]
[1765262945304,0.01752,90112.0,90111.0,0.37295468]
[1765262945693,0.01952,90112.0,90111.0,0.37295468]
[1765262948121,0.01952,90112.0,90111.0,0.39637468]
[1765262950214,0.002,90112.0,90111.0,0.90464467]
[1765262950414,0.002,90112.0,90111.0,0.92795087]
[1765262950615,0.002,90112.0,90111.0,0.86839968]
[1765262952363,0.002,90112.0,90111.0,0.67994068]
[1765262952570,0.002,90112.0,90111.0,0.66948868]
[1765262952878,0.002,90112.0,90111.0,0.52149268]
[1765262953036,0.02391236,90112.0,90111.0,0.35632468]
[1765262954359,0.002,90112.0,90111.0,0.47525768]
[1765262954598,0.002,90112.0,90111.0,0.49958768]
[1765262955120,0.002,90112.0,90111.0,0.39667468]
[1765262955340,0.002,90112.0,90111.0,0.37234468]
[1765262959467,0.002,90112.0,90111.0,0.39667468]
[1765262959672,0.002,90112.0,90111.0,0.55547768]
[1765262959881,0.002,90112.0,90111.0,0.39667468]
[1765262961854,0.002,90112.0,90111.0,0.75056068]
[1765262962141,0.002,90112.0,90111.0,0.63166368]
[1765262964265,0.002,90112.0,90111.0,0.61070468]
[1765262964660,0.002,90112.0,90111.0,0.56642768]
[1765262965079,0.002,90112.0,90111.0,0.35632468]
[1765262965262,0.01199818,90112.0,90111.0,0.35632468]
[1765262965479,0.01199818,90112.0,90111.0,0.03332468]
[1765262965480,0.02968105,90112.0,90111.0,0.03332468]
[1765262965679,0.04908105,90112.0,90111.0,0.03332468]
[1765262966082,0.02968105,90112.0,90111.0,0.03332468]
[1765262969253,0.04908105,90112.0,90111.0,0.03332468]
[1765262969954,0.04908105,90112.0,90111.0,0.35632468]
[1765262971761,0.04908105,90112.0,90111.0,0.03332468]
[1765262976374,0.04808105,90112.0,90111.0,0.03332468]
[1765262976758,0.06560105,90112.0,90111.0,0.03332468]
[1765262976926,0.00999818,90103.0,90102.0,0.17024698]
[1765262977140,0.05560287,90112.0,90099.0,0.3340989]
[1765262977141,0.0469348,90111.0,90099.0,0.3340989]
[1765262977333,0.00999818,90100.0,90099.0,0.323]
[1765262977538,0.04358818,90100.0,90099.0,0.323]
[1765262977734,0.04358818,90100.0,90099.0,0.35632946]
[1765262978178,0.06298818,90100.0,90099.0,0.03332946]
[1765262978742,0.04758818,90100.0,90099.0,0.03332946]
[1765262979490,0.06698818,90100.0,90099.0,0.03332946]
[1765262979816,0.02152,90100.0,90099.0,0.03332946]
[1765262981171,0.02152,90100.0,90099.0,0.35632946]
[1765262982121,0.05950236,90100.0,90099.0,0.35632946]
[1765262982342,0.05950236,90100.0,90099.0,0.03332946]
[1765262982492,0.07890236,90100.0,90099.0,0.03332946]
[1765262982874,0.06698818,90100.0,90099.0,0.03332946]
[1765262983967,0.09473512,90100.0,90099.0,0.03312946]
[1765262984166,0.09273512,90100.0,90099.0,0.03312946]
[1765262984398,0.06498818,90100.0,90099.0,0.03312946]
[1765262984620,0.04458818,90100.0,90099.0,0.03312946]
[1765262984834,0.04558818,90100.0,90099.0,0.03312946]
[1765262985065,0.02851818,90100.0,90099.0,0.03312946]
[1765262985260,0.02951818,90100.0,90099.0,0.03312946]
[1765262986522,0.02851818,90100.0,90099.0,0.03312946]
[1765262986723,0.02751818,90100.0,90099.0,0.03312946]
[1765262987067,0.02851818,90100.0,90099.0,0.03312946]
[1765262988846,0.01852,90100.0,90099.0,0.03312946]
[1765262989640,0.01752,90100.0,90099.0,0.03312946]
[1765262990041,0.02052,90100.0,90099.0,0.03312946]
[1765262991331,0.003,90100.0,90099.0,0.03312946]
[1765262991535,0.02052,90100.0,90099.0,0.03312946]
[1765262992529,0.003,90100.0,90099.0,0.03312946]
[1765262992668,0.02052,90100.0,90099.0,0.03312946]
[1765262995065,0.02052,90100.0,90099.0,0.04921946]
[1765262995229,0.02052,90100.0,90099.0,0.07221946]
[1765262995635,0.02052,90100.0,90099.0,0.04921946]
[1765262996058,0.02052,90100.0,90099.0,0.03312946]
[1765263000895,0.03051818,90100.0,90099.0,0.03312946]
[1765263001729,0.06568818,90100.0,90099.0,0.03312946]
[1765263002321,0.02052,90100.0,90099.0,0.5781075]
[1765263004973,0.02052,90100.0,90099.0,0.61795835]
[1765263006260,0.02052,90100.0,90099.0,0.5781075]
[1765263007179,0.003,90100.0,90099.0,0.5781075]
[1765263007445,0.02052,90100.0,90099.0,0.5781075]
[1765263009684,0.003,90100.0,90099.0,0.70011072]
[1765263010006,0.02052,90100.0,90099.0,0.70011072]
[1765263010230,0.003,90100.0,90099.0,1.23275672]
[1765263010384,0.02191236,90114.0,90101.0,0.54497311]
[1765263010385,0.01752,90102.0,90101.0,0.54497311]
[1765263010594,0.00999818,90116.0,90115.0,0.01109693]
[1765263010766,0.02751818,90116.0,90115.0,0.01109693]
[1765263011472,0.01752,90116.0,90115.0,0.01109693]
[1765263011666,0.01752,90116.0,90115.0,0.03861511]
[1765263012058,0.01752,90116.0,90115.0,0.07849509]
[1765263012254,0.01852,90116.0,90115.0,0.03861511]
[1765263012485,0.01952,90116.0,90115.0,0.44210509]
[1765263012892,0.01952,90116.0,90115.0,0.40222511]
[1765263013142,0.01852,90116.0,90115.0,0.40222511]
[1765263013472,0.01852,90116.0,90115.0,0.36161511]
[1765263014378,0.01852,90116.0,90115.0,0.40189511]
[1765263014796,0.01752,90116.0,90115.0,0.40189511]
[1765263015004,0.00051586,90120.0,90118.0,0.323]
[1765263015214,0.00051586,90120.0,90119.0,0.02802]
[1765263015437,0.01803586,90120.0,90119.0,0.59699878]
[1765263015743,0.01803586,90120.0,90119.0,0.63681872]
[1765263016090,0.01803586,90120.0,90119.0,0.59699878]
[1765263016329,0.0004,90130.0,90129.0,0.323]
[1765263016531,0.01792,90130.0,90129.0,0.323]
[1765263017068,0.01792,90130.0,90129.0,0.34092]
[1765263017248,0.01792,90130.0,90129.0,0.41310974]
[1765263018416,0.02773186,90149.0,90129.0,0.41310974]
[1765263018417,0.01142,90145.0,90139.0,0.54487954]
[1765263018724,0.01343287,90140.0,90139.0,0.54487954]
[1765263018923,0.03534523,90140.0,90139.0,0.54487954]
[1765263019146,0.03534523,90140.0,90139.0,0.55629954]
[1765263019550,0.04676523,90140.0,90139.0,0.55629954]
[1765263019954,0.04676523,90140.0,90139.0,0.55729954]
[1765263020759,0.06428523,90140.0,90139.0,0.55729954]
[1765263021085,0.06494328,90140.0,90139.0,0.55729954]
[1765263022278,0.05352328,90140.0,90139.0,0.55729954]
[1765263023166,0.04210328,90140.0,90139.0,0.55729954]
[1765263023423,0.05352328,90140.0,90139.0,0.55729954]
[1765263025629,0.04210328,90140.0,90139.0,0.55729954]
[1765263026286,0.02019092,90140.0,90139.0,0.55729954]
[1765263027291,0.01857805,90140.0,90139.0,0.55729954]
[1765263028909,0.0004,90150.0,90139.0,0.55729954]
[1765263028910,0.02231236,90150.0,90149.0,0.54485492]
[1765263029106,0.0399482,90150.0,90149.0,0.54485492]
[1765263029609,0.01803584,90150.0,90149.0,0.57816488]
[1765263030009,0.00051584,90150.0,90149.0,0.57816488]
[1765263030210,0.00151584,90150.0,90149.0,0.57816488]
[1765263030737,0.00051584,90150.0,90149.0,0.57816488]
[1765263031123,0.00151584,90150.0,90149.0,0.57816488]
[1765263033240,0.00151584,90150.0,90149.0,0.59439488]
[1765263034246,0.00151584,90150.0,90149.0,0.57816488]
[1765263034814,0.00181487,90150.0,90149.0,0.57816488]
[1765263038933,0.03514723,90150.0,90149.0,0.57816488]
[1765263039334,0.01323487,90150.0,90149.0,0.57816488]
[1765263041996,0.00181487,90150.0,90149.0,0.57816488]
[1765263048042,0.00181487,90150.0,90149.0,0.61947488]
[1765263049064,0.00081487,90150.0,90149.0,0.61947488]
[1765263049266,0.0004,90160.0,90159.0,0.54483032]
[1765263050010,0.0004,90160.0,90159.0,0.56235032]
[1765263050768,0.0014,90160.0,90159.0,0.56235032]
[1765263051497,0.0024,90160.0,90159.0,0.56235032]
[1765263053407,9e-05,90168.0,90167.0,0.54481064]
[1765263053554,9e-05,90168.0,90167.0,0.55609064]
[1765263053760,9e-05,90168.0,90167.0,0.54481064]
[1765263053954,9e-05,90168.0,90167.0,0.55623064]
[1765263054582,0.01151,90168.0,90167.0,0.55623064]
[1765263054784,0.01151,90168.0,90167.0,0.55723064]
[1765263055256,0.01204812,90168.0,90167.0,0.55723064]
[1765263055791,0.04538048,90168.0,90167.0,0.55723064]
[1765263058136,0.00062812,90168.0,90167.0,0.55723064]
[1765263059699,0.00062812,90168.0,90167.0,0.59706443]
[1765263059903,0.00062812,90168.0,90167.0,0.59854064]
[1765263060105,0.00062812,90168.0,90167.0,0.65836061]
[1765263060433,0.00062812,90168.0,90167.0,0.63368061]
[1765263060602,0.00062812,90168.0,90167.0,0.57386064]
[1765263061578,0.00062812,90168.0,90167.0,0.55723064]
[1765263062368,0.00062812,90168.0,90167.0,0.61692909]
[1765263064854,0.00062812,90168.0,90167.0,0.55723064]
[1765263065494,0.01204812,90168.0,90167.0,0.55723064]
[1765263065692,0.02346812,90168.0,90167.0,0.33542]
[1765263066353,0.04699335,90168.0,90167.0,0.01242]
[1765263067732,0.04799335,90168.0,90167.0,0.01242]
[1765263067877,0.02191236,90159.0,90158.0,0.17005086]
[1765263068075,0.02191236,90159.0,90150.0,0.17005086]
[1765263068076,0.03055287,90159.0,90152.0,0.01109237]
[1765263068272,0.02191236,90153.0,90152.0,0.23293991]
[1765263068589,0.03333236,90153.0,90152.0,0.55593991]
[1765263068785,0.04104523,90159.0,90158.0,0.22183278]
[1765263069223,0.02894,90159.0,90158.0,0.22183278]
[1765263070037,0.02894,90159.0,90158.0,0.22283278]
[1765263070611,0.02994,90159.0,90158.0,0.22283278]
[1765263071133,0.02894,90159.0,90158.0,0.22283278]
[1765263071334,0.05035818,90159.0,90158.0,0.22283278]
[1765263073242,0.05062727,90159.0,90158.0,0.22283278]
[1765263074079,0.05062727,90159.0,90158.0,0.25613996]
[1765263074871,0.02920909,90159.0,90158.0,0.3283297]
[1765263075213,0.01778909,90159.0,90158.0,0.3283297]
[1765263075371,0.02920909,90159.0,90158.0,0.3283297]
[1765263075573,0.05112145,90159.0,90158.0,0.3283297]
[1765263076262,0.01778909,90159.0,90158.0,0.3283297]
[1765263076459,0.01778909,90159.0,90158.0,0.3444197]
[1765263077304,0.01778909,90159.0,90158.0,0.38420369]
[1765263077474,0.00026909,90159.0,90158.0,0.38420369]
[1765263077689,0.00026909,90159.0,90158.0,0.40699369]
[1765263077901,0.00026909,90159.0,90158.0,0.3672097]
[1765263078308,0.00026909,90159.0,90158.0,0.6902097]
[1765263079312,0.00026909,90159.0,90158.0,0.74990815]
[1765263079958,0.00026909,90159.0,90158.0,0.71102815]
[1765263080098,0.00026909,90159.0,90158.0,0.6513297]
[1765263081911,0.00026909,90159.0,90158.0,0.6902097]
[1765263083824,0.00026909,90159.0,90158.0,0.74990815]
[1765263084445,0.00026909,90159.0,90158.0,0.67771841]
[1765263084779,0.00026909,90159.0,90158.0,1.03662496]
[1765263085856,0.00026909,90159.0,90158.0,1.03562496]
[1765263086058,0.00126909,90159.0,90158.0,1.03562496]
[1765263086255,0.00226909,90159.0,90158.0,1.03562496]
[1765263086954,0.00226909,90159.0,90158.0,0.79349896]
[1765263087156,0.00226909,90159.0,90158.0,0.77070896]
[1765263087670,0.00226909,90159.0,90158.0,0.75461896]
[1765263088760,0.00226909,90159.0,90158.0,0.77070896]
[1765263089834,0.00226909,90159.0,90158.0,0.75461896]
[1765263090038,0.00226909,90159.0,90158.0,0.63784183]
[1765263090572,0.00226909,90159.0,90158.0,0.57813996]
[1765263093511,0.00226909,90159.0,90158.0,0.63784183]
[1765263095342,0.00226909,90159.0,90158.0,0.57813996]
[1765263096022,0.00226909,90159.0,90158.0,0.61701996]
[1765263104378,0.00226909,90159.0,90158.0,0.76261996]
[1765263106186,0.00226909,90159.0,90158.0,0.73982996]
[1765263106616,0.00226909,90159.0,90158.0,0.76253996]
[1765263114385,0.00226909,90159.0,90158.0,2.52194796]
[1765263115299,0.00226909,90159.0,90158.0,1.48460196]
[1765263115464,0.00226909,90159.0,90158.0,1.42177696]
[1765263115794,0.00226909,90159.0,90158.0,0.72373996]
[1765263116084,0.00226909,90159.0,90158.0,0.25513996]
[1765263116482,0.00226909,90159.0,90158.0,0.57813996]
[1765263117196,0.00226909,90159.0,90158.0,0.68076396]
[1765263117398,0.00226909,90159.0,90158.0,0.57813996]
[1765263119695,0.00226909,90159.0,90158.0,0.74982996]
[1765263120647,9e-05,90168.0,90158.0,0.74982996]
[1765263120648,9e-05,90168.0,90167.0,0.54481064]
[1765263120854,9e-05,90168.0,90167.0,0.57281064]
[1765263121020,9e-05,90168.0,90167.0,0.59552064]
[1765263123250,0.0004,90170.0,90167.0,0.59552064]
[1765263123251,0.01752,90185.0,90179.0,0.54478112]
[1765263123457,0.00078605,90180.0,90179.0,0.55675112]
[1765263123617,0.00078605,90180.0,90179.0,0.57275112]
[1765263123834,0.00078605,90180.0,90179.0,0.55675112]
[1765263124228,0.00078605,90180.0,90179.0,0.5965952]
[1765263124453,0.00278605,90180.0,90179.0,0.5965952]
[1765263124969,0.00278605,90180.0,90179.0,0.5846252]
[1765263125141,0.00278605,90180.0,90179.0,0.54478112]
[1765263125516,0.00478605,90180.0,90179.0,0.54478112]
[1765263125720,0.00478605,90180.0,90179.0,0.58517112]
[1765263127964,0.01142,90195.0,90189.0,0.54475653]
[1765263128173,0.00051577,90190.0,90189.0,0.59711653]
[1765263128389,0.00144226,90190.0,90189.0,0.55672653]
[1765263128529,0.00144226,90190.0,90189.0,0.57804878]
[1765263129248,0.00144226,90190.0,90189.0,0.61783648]
[1765263130171,0.00144226,90190.0,90189.0,0.61883648]
[1765263131252,0.00144226,90190.0,90189.0,0.57904878]
[1765263132956,0.01286226,90190.0,90189.0,0.57904878]
[1765263139901,0.02428226,90190.0,90189.0,0.54575653]
[1765263140128,0.01286226,90190.0,90189.0,0.56859653]
[1765263141763,0.00144226,90190.0,90189.0,0.54575653]
[1765263141968,0.00144226,90190.0,90189.0,0.55861879]
[1765263144969,0.04619462,90190.0,90189.0,0.55861879]
[1765263145350,0.04780749,90190.0,90189.0,0.54575653]
[1765263145751,0.04780749,90190.0,90189.0,0.54475653]
[1765263151333,0.04780749,90190.0,90189.0,0.323]
[1765263151835,0.00999818,90181.0,90180.0,0.17002062]
[1765263152128,0.02894,90181.0,90178.0,0.23287245]
[1765263152345,0.03333236,90179.0,90178.0,0.33408917]
[1765263152693,0.04475236,90179.0,90178.0,0.33408917]
[1765263152894,0.04475236,90179.0,90178.0,0.55587275]
[1765263153512,0.04575236,90179.0,90178.0,0.55587275]
[1765263154132,0.04675236,90179.0,90178.0,0.55587275]
[1765263158986,0.074475,90179.0,90178.0,0.323]
[1765263159227,0.04675236,90179.0,90178.0,0.323]
[1765263160162,0.04675236,90179.0,90178.0,0.54478358]
[1765263160367,0.04675236,90179.0,90178.0,0.323]
[1765263163799,0.04675236,90179.0,90178.0,0.3228]
[1765263164381,0.04735017,90179.0,90178.0,0.3228]
[1765263171865,0.11953991,90179.0,90178.0,0.3228]
[1765263174186,0.02191236,90175.0,90173.0,0.2328837]
[1765263174387,0.03914294,90178.0,90173.0,0.01108979]
[1765263174553,0.03333236,90174.0,90172.0,0.323]
[1765263174754,0.03914294,90178.0,90172.0,0.323]
[1765263174755,0.04475236,90173.0,90172.0,0.323]